Cogmind - Beta 12 @@@ ROGUE MODE // 2023.03.14 @ 04:44:04 Player: kawyua Result: Destroyed by H-66 Slayer with Heavy Assault Rifle Performance ------------- Evolutions (4) 2000 Regions Visited (9) 1800 Robots Destroyed (112) 560 Value Destroyed (3328) 3328 Prototype IDs (15) 300 Alien Tech Used (0) 0 Bonus (306) 306 TOTAL SCORE: 8294 Bonus ------- High Alert Combat Kills 6 Met Data Miner 300 Cogmind --------- Core Integrity 0/850 Matter 140/300 Energy 100/100 System Corruption 3% Temperature Cool (0) Movement Core (800) Ox15 Location -6/Factory Parts ------- > --- POWER (2) -------- (None) > --- PROPULSION (6) --- (None) > --- UTILITY (5) ------ High-capacity Storage Unit Improved Signal Interpreter Core Analyzer > --- WEAPON (2) ------- Long-range Missile Launcher > --- INVENTORY (20) --- VTOL Module VTOL Module Improved Heat Sink Advanced Weight Redist. System Launcher Loader Hardened Light Armor Plating Hardened Medium Armor Plating Reflective Plating Phase Cannon Autogun Heavy Missile Launcher Improved Datajack Peak State ------------ > --- POWER ------------ Light Angular Momentum Engine > --- PROPULSION ------- Airjet Gravmag System Gravmag System Gravmag System Gravmag System > --- UTILITY ---------- Large Storage Unit Improved Terrain Scanner Advanced Terrain Scan Processor Reaction Control System Improved Shield Generator > --- WEAPON ----------- Cooled Particle Cannon Heavy Mace > --- INVENTORY -------- Improved Hover Unit Improved Hover Unit Improved Hover Unit Improved Hover Unit Improved Hover Unit Advanced Weight Redist. System Improved Signal Interpreter Transmission Jammer Improved Utility Shielding Hardened Light Armor Plating Shield Generator Heavy Missile Launcher Heavy Missile Launcher Heavy Missile Launcher Heavy Missile Launcher [Rating: 51] Favorites ----------- Power Nuclear Core Engine Improved Deuterium Engine Power Core Nuclear Core Propulsion Light Treads Treads Light Treads Leg VSS Leg Wheel Compact Wheel Hover Unit Gravmag System Flight Unit Xenon Bombardment Thruster Utility Large Storage Unit Device Advanced Weight Redist. System Storage Large Storage Unit Processor Advanced Terrain Scan Processor Protection Hardened Light Armor Plating Weapon Light Cannon Energy Gun Heavy Particle Gun Energy Cannon Cooled Particle Cannon Ballistic Gun Assault Rifle Ballistic Cannon Light Cannon Launcher Heavy Missile Launcher Special Weapon Plasma Cutter Impact Weapon Heavy Mace Build | -11 -10 -9 -8 -7 -7 -7 -7 -6 -6 ------- Run | Jun Mat Mat Mat Fac Low Low Dat Pro Fac Slots Evolved 8 | . . 2 2 2 . . . . 2 Power 1 | . . . . . . . . . 1 Propulsion 4 | . . 1 2 . . . . . 1 Utility 3 | . . 1 . 2 . . . . . Weapon . | . . . . . . . . . . Parts Attached 124 | 7 2 18 32 28 1 . . 5 31 Power 19 | 1 1 2 5 3 . . . 2 5 Engine 9 | 1 1 2 2 . . . . . 3 Core 10 | . . . 3 3 . . . 2 2 Reactor . | . . . . . . . . . . Propulsion 41 | 2 . 6 16 10 . . . . 7 Treads 20 | 2 . 6 9 . . . . . 3 Leg 3 | . . . 2 . . . . . 1 Wheel 3 | . . . . . . . . . 3 Hover 10 | . . . 5 5 . . . . . Flight 5 | . . . . 5 . . . . . Utility 38 | 2 1 7 6 12 . . . 1 9 Device 16 | 1 . . 4 9 . . . . 2 Storage 4 | 1 1 . . . . . . . 2 Processor 7 | . . 1 1 2 . . . 1 2 Hackware . | . . . . . . . . . . Protection 11 | . . 6 1 1 . . . . 3 Artifact . | . . . . . . . . . . Weapon 26 | 2 . 3 5 3 1 . . 2 10 Energy Gun 5 | . . . 2 . . . . . 3 Energy Cannon 2 | . . . 1 1 . . . . . Ballistic Gun 2 | 2 . . . . . . . . . Ballistic Cannon 5 | . . 3 1 . . . . . 1 Launcher 8 | . . . 1 1 1 . . 2 3 Special Weapon 1 | . . . . . . . . . 1 Impact Weapon 3 | . . . . 1 . . . . 2 Slashing Weapon . | . . . . . . . . . . Piercing Weapon . | . . . . . . . . . . Special Melee Weapon . | . . . . . . . . . . Unidentified Prototypes 4 | . . . 1 2 . . . . 1 Parts Lost 58 | . . 8 8 10 . . . 8 24 Power 9 | . . 1 1 2 . . . 1 4 Propulsion 24 | . . 2 4 6 . . . 5 7 Utility 14 | . . 3 . 2 . . . 2 7 Weapon 11 | . . 2 3 . . . . . 6 Highest Loss Streak 13 | . . 3 3 4 . . . 7 13 To Critical Strikes . | . . . . . . . . . . Average Slot Usage (%) 86 | . 100 94 91 91 97 100 100 69 64 Engine 5 | . 14 9 1 2 . . . . 6 Core 3 | . . . 6 1 7 7 7 7 2 Treads 16 | . 28 29 31 . . . . . 9 Leg 1 | . . . 5 . . . . . . Hover 7 | . . . 1 31 . . . . . Flight 3 | . . . . 4 38 38 38 22 . Device 10 | . 14 1 6 20 23 23 23 16 6 Storage 8 | . 14 11 9 7 7 7 7 4 4 Processor 7 | . . 3 8 7 7 7 7 9 14 Protection 4 | . . 16 2 1 . . . . 3 Energy Gun 2 | . . . 5 . . . . . 3 Ballistic Gun 2 | . 28 3 . . . . . . . Ballistic Cannon 6 | . . 18 10 . . . . . 4 Impact Weapon 2 | . . . . 6 7 7 7 4 1 Naked Turns . | . . . . . . . . . . Heaviest Build 79 | 13 30 41 45 45 39 39 39 39 79 Greatest Support 103 | 40 40 69 103 52 39 39 39 39 56 Greatest Overweight (x) 16 | . . 1 14 6 . . . 1 16 Average Overweight (x) . | . . . . . . . . . . Largest Inventory Capacity 20 | 8 15 15 15 15 15 15 15 15 20 Average Capacity 14 | 7 9 15 15 15 15 15 15 11 14 Most Carried 20 | 7 12 15 15 15 15 15 14 15 20 Average Carried 12 | 4 8 12 14 13 14 14 14 11 12 Final Capacity 20 | 8 15 15 15 15 15 15 15 5 20 Final Carried 15 | 6 12 15 13 15 15 14 14 5 13 Class Distribution -------------------- 78% | Mutant 12% | Scavenger-Mutant 8% | Sprinter Dominant Class ---------------- Mutant | -10/Materials Mutant | -9/Materials Mutant | -8/Materials Mutant | -7/Factory Sprinter | -7/Lower Caves Sprinter | -7/Lower Caves Sprinter | -7/Data Miner Sprinter | -6/Proximity Caves Scavenger-Mutant | -6/Factory Resources | -11 -10 -9 -8 -7 -7 -7 -7 -6 -6 ----------- Run | Jun Mat Mat Mat Fac Low Low Dat Pro Fac Matter Collected 2802 | 294 102 578 676 406 48 52 . 17 629 Remotely . | . . . . . . . . . . Salvage Created 3453 | 116 161 594 1027 572 50 75 . 49 809 Parts 188 | 6 20 53 52 10 . 4 . 4 39 Haulers Intercepted 2 | . . 1 . . . . . . 1 Recyclers Shooed 7 | . 1 . 3 1 . . . . 2 Parts Field Recycled . | . . . . . . . . . . Retrieved Matter . | . . . . . . . . . . Parts Self-Destructed 4 | . . . . . . 1 . 3 . Prevented . | . . . . . . . . . . Kills | -11 -10 -9 -8 -7 -7 -7 -7 -6 -6 ------- Run | Jun Mat Mat Mat Fac Low Low Dat Pro Fac Combat Hostiles Destroyed 81 | . 7 21 26 6 2 2 . 4 13 Melee 2 | . . . . 2 . . . . . Guns 20 | . 7 . 9 . . . . . 4 Cannons 43 | . . 21 17 . . . . . 5 AOE 10 | . . . . . 2 2 . 4 2 Classes Destroyed 13 | 3 3 3 1 1 . . . . 2 Worker 7 | 1 . . 1 4 . . . . 1 Builder 4 | . 1 . . 1 . . . . 2 Tunneler 2 | 1 . . . . . . . . 1 Hauler 2 | . . 1 . . . . . . 1 Recycler 7 | 1 . . 3 2 . . . . 1 Mechanic 1 | . . . . . . . . . 1 Operator 5 | . . . 2 2 . . . . 1 Watcher 3 | . . 1 . 1 . . . . 1 Swarmer 29 | . 6 8 7 . . . . 4 4 Grunt 30 | . 1 8 13 3 2 2 . . 1 Sentry 15 | . . 5 6 1 . . . . 3 Hunter 2 | . . . . . . . . . 2 Programmer 5 | . . . . 2 . . . . 3 Best Kill Streak 5 | 2 4 5 5 4 2 2 . 4 5 Combat Bots Only 5 | . 4 5 5 3 2 2 . 4 4 Max Kills in Single Turn 3 | 1 2 2 2 1 2 1 . 3 2 Gunslinging . | . . . . . . . . . . Exploded 3 | . . . . . 2 1 . 3 1 Melee 1 | . . . . 1 . . . . . Uniques/NPCs Destroyed . | . . . . . . . . . . Combat | -11 -10 -9 -8 -7 -7 -7 -7 -6 -6 -------- Run | Jun Mat Mat Mat Fac Low Low Dat Pro Fac Damage Taken 8040 | . 368 1038 1676 770 100 39 . 674 3375 Core 1483 | . 37 64 183 112 12 . . 213 862 Absorbed by Shields 150 | . . . . 150 . . . . . Redirected to Shielding 36 | . . . . 36 . . . . . Core Remaining (%) 77 | 100 85 84 66 . . . . 51 . Volleys Fired 292 | 10 19 49 97 30 2 2 . 2 81 Largest 2 | 2 2 2 2 1 1 1 . 1 2 Hottest 160 | 40 40 70 95 90 39 39 . 39 160 Shots Fired 483 | 20 38 97 177 30 2 3 . 2 114 Gun 157 | 20 38 5 48 12 . . . . 34 Cannon 288 | . . 92 128 17 . . . . 51 Launcher 21 | . . . 1 1 2 3 . 2 12 Special 17 | . . . . . . . . . 17 Kinetic 332 | 20 38 97 126 . . . . . 51 Thermal 130 | . . . 50 29 . . . . 51 Explosive 21 | . . . 1 1 2 3 . 2 12 Electromagnetic . | . . . . . . . . . . Robot Hit Streak 15 | 3 6 10 15 6 1 1 . 3 6 Robot Miss Streak 5 | 2 4 2 4 1 1 1 . . 5 Penetration Max . | . . . . . . . . . . Secondary Targets 1 | . 1 . . . . . . . . Max Gunslinging Chain 1 | . 1 . . . . . . . . Shots Hit Robots 324 | 11 17 63 120 36 1 1 . 2 73 Core Hits 140 | 4 8 28 51 3 4 4 . 2 36 Critical Kills . | . . . . . . . . . . Critical Parts Destroyed 9 | . . . . 6 . . . . 3 Critical Strikes 23 | . . 2 5 6 . . . . 10 Destroy 1 | . . . . . . . . . 1 Blast 12 | . . 2 5 . . . . . 5 Smash 10 | . . . . 6 . . . . 4 Melee Attacks 79 | . . . . 55 . . . 2 22 Impact 79 | . . . . 55 . . . 2 22 Slashing . | . . . . . . . . . . Piercing . | . . . . . . . . . . Sneak Attacks 8 | . . . . 6 . . . . 2 Combat Hostiles . | . . . . . . . . . . Follow-up Attacks . | . . . . . . . . . . Damage Inflicted 9675 | 144 213 1087 2297 1962 350 299 . 347 2976 Guns 1550 | 144 213 38 657 . . . . . 498 Cannons 3774 | . . 1045 1566 213 . . . . 950 Explosions 1883 | . . . 74 123 350 299 . 347 690 Melee 2347 | . . . . 1602 . . . . 745 Ramming 35 | . . 4 . 24 . . . . 7 Kinetic 3921 | 144 213 1083 1531 . . . . . 950 Thermal 1588 | . . . 692 213 . . . . 683 Explosive 1784 | . . . 74 123 350 299 . 347 591 Electromagnetic . | . . . . . . . . . . Impact 2347 | . . . . 1602 . . . . 745 Slashing . | . . . . . . . . . . Piercing . | . . . . . . . . . . Highest Corruption 5 | . . . . 4 4 5 5 5 3 Average Corruption 3 | . . . . 3 4 4 5 5 2 Corruption Purged . | . . . . . . . . . . Corruption Blocked . | . . . . . . . . . . Effects 42 | . . . . 22 4 5 . 6 5 Message Errors 9 | . . . . 5 . 1 . 2 1 Matter Fused 12 | . . . . 5 . 2 . 3 2 Heat Flow Errors 2 | . . . . 1 . . . 1 . Energy Discharges 5 | . . . . 3 2 . . . . Data Loss (minor) 9 | . . . . 6 . 1 . . 2 Data Loss (major) 2 | . . . . 1 1 . . . . Misfires 1 | . . . . . . 1 . . . Alerts 2 | . . . . 1 1 . . . . Overload Shots 2 | . . . . 2 . . . . . Overflow Damage 1137 | . . . 11 708 . . . 57 361 Projectiles 93 | . . . 11 12 . . . . 70 Explosions 140 | . . . . 77 . . . 57 6 Melee 904 | . . . . 619 . . . . 285 Knockbacks 51 | . . 12 22 7 . . . . 10 Impact 9 | . . . . 7 . . . . 2 Kinetic 38 | . . 10 21 . . . . . 7 Secondary 4 | . . 2 1 . . . . . 1 Self-Inflicted Damage 437 | . . . . 152 . 25 . . 260 Shots 8 | . . . . 2 . 1 . . 5 Rammed 3 | . . 1 . 1 . . . . 1 Targets Rammed 3 | . . 1 . 1 . . . . 1 Kicked . | . . . . . . . . . . Crushed . | . . . . . . . . . . Highest Temperature 476 | . . 216 285 174 103 81 37 213 476 Average Temperature 75 | . . 62 83 59 60 34 20 65 127 Received Heat Transfer 1798 | . 60 297 750 160 27 . . 78 426 Effects 9 | . . . 1 . . . . . 8 Shutdowns 4 | . . . . . . . . . 4 Energy Bleed 2 | . . . . . . . . . 2 Interference 1 | . . . 1 . . . . . . Matter Decay 1 | . . . . . . . . . 1 Damage (minor) 1 | . . . . . . . . . 1 Siege Activations . | . . . . . . . . . . Robots Corrupted . | . . . . . . . . . . Combat Hostiles . | . . . . . . . . . . Parts Fried 17 | . . . . 13 . . . . 4 Impact Corruptions 40 | . . . . 29 . . . . 11 Robots Melted . | . . . . . . . . . . Combat Hostiles . | . . . . . . . . . . Parts Melted 1 | . . . . . . . . . 1 Heat Transferred 2666 | . . . 1369 248 . . . . 1049 Parts Sabotaged . | . . . . . . . . . . Parts Stolen . | . . . . . . . . . . Parts Stripped . | . . . . . . . . . . Power Chain Reactions . | . . . . . . . . . . Missiles Intercepted . | . . . . . . . . . . Alert | -11 -10 -9 -8 -7 -7 -7 -7 -6 -6 ------- Run | Jun Mat Mat Mat Fac Low Low Dat Pro Fac Peak Influence 433 | 15 219 433 361 285 . . . . 367 Initial 228 | . 9 7 155 119 . . . . 228 Average 180 | 3 65 189 220 155 . . . . 229 Maximum Alert Level 2 | . 1 2 1 1 . . . . 1 Low Security (%) 51 | 100 97 43 35 78 . . . . 22 Level 1 47 | . 2 55 64 21 . . . . 77 Level 2 . | . . . . . . . . . . Level 3 . | . . . . . . . . . . Level 4 . | . . . . . . . . . . Level 5 . | . . . . . . . . . . High Security . | . . . . . . . . . . Max Security . | . . . . . . . . . . Squads Dispatched 10 | . . 1 2 1 . . . . 6 Investigation . | . . . . . . . . . . Extermination 3 | . . . . 1 . . . . 2 Reinforcement 4 | . . 1 2 . . . . . 1 Assault . | . . . . . . . . . . Garrison 3 | . . . . . . . . . 3 Intercept . | . . . . . . . . . . Searches Triggered . | . . . . . . . . . . Construction Impeded 1 | . . . . . . . . . 1 Haulers Reinforced . | . . . . . . . . . . Active Scanning Responses . | . . . . . . . . . . Cargo Convoy Interrupts . | . . . . . . . . . . Stealth | -11 -10 -9 -8 -7 -7 -7 -7 -6 -6 --------- Run | Jun Mat Mat Mat Fac Low Low Dat Pro Fac Distress Signals 7 | . 1 2 2 1 . . . . 1 Communications Jammed . | . . . . . . . . . . Distress Signals . | . . . . . . . . . . Times Spotted 160 | . 11 29 42 26 7 4 . 19 22 Peak Tracking Total 12 | . 5 6 8 5 4 3 . 12 4 Tactical Retreats 15 | . 1 4 4 2 1 1 . 1 1 Traps | -11 -10 -9 -8 -7 -7 -7 -7 -6 -6 ------- Run | Jun Mat Mat Mat Fac Low Low Dat Pro Fac Traps Triggered 5 | . 1 1 1 2 . . . . . Indirectly . | . . . . . . . . . . Trap Hack Attempts . | . . . . . . . . . . Triggered . | . . . . . . . . . . Disarmed . | . . . . . . . . . . Reprogrammed . | . . . . . . . . . . Reused . | . . . . . . . . . . Traps Extracted . | . . . . . . . . . . Installed . | . . . . . . . . . . Triggered 1 | . . . . 1 . . . . . Machines | -11 -10 -9 -8 -7 -7 -7 -7 -6 -6 ---------- Run | Jun Mat Mat Mat Fac Low Low Dat Pro Fac Machines Disabled 14 | . . 2 2 3 . . . . 7 Max in Single Turn 4 | . . 1 1 2 . . . . 4 Machines Repaired . | . . . . . . . . . . Machines Sabotaged . | . . . . . . . . . . Overloaded Fab Kills . | . . . . . . . . . . Hacking | -11 -10 -9 -8 -7 -7 -7 -7 -6 -6 --------- Run | Jun Mat Mat Mat Fac Low Low Dat Pro Fac Machines Accessed 16 | . . 1 6 3 . 1 4 . 1 Terminals 9 | . . 1 6 2 . . . . . Fabricators 1 | . . . . . . . . . 1 Repair Stations . | . . . . . . . . . . Recycling Units . | . . . . . . . . . . Scanalyzers . | . . . . . . . . . . Garrison Access 1 | . . . . 1 . . . . . Total Hacks 51 | . . 4 11 3 . 2 30 . 1 Successful 35 | . . 1 1 . . 2 30 . 1 Failed 16 | . . 3 10 3 . . . . . Catastrophic 7 | . . . 6 1 . . . . . Database Lockouts . | . . . . . . . . . . Manual 17 | . . 4 11 2 . . . . . Terminals 17 | . . 4 11 2 . . . . . Fabricators 1 | . . . . . . . . . 1 Repair Stations . | . . . . . . . . . . Recycling Units . | . . . . . . . . . . Scanalyzers . | . . . . . . . . . . Garrison Access 1 | . . . . 1 . . . . . Terminal Hacks 34 | . . 1 1 . . 2 30 . . Record 13 | . . . . . . 2 11 . . Part Schematic 9 | . . . . . . . 9 . . Robot Schematic 7 | . . . . . . . 7 . . Prototype ID Bank 3 | . . . . . . . 3 . . Unreport Threat 2 | . . 1 1 . . . . . . Fabricator Hacks 1 | . . . . . . . . . 1 Network Status 1 | . . . . . . . . . 1 Repair Station Hacks . | . . . . . . . . . . Recycling Unit Hacks . | . . . . . . . . . . Scanalyzer . | . . . . . . . . . . Garrison Access Hacks . | . . . . . . . . . . Unauthorized Hacks . | . . . . . . . . . . Terminals . | . . . . . . . . . . Fabricators . | . . . . . . . . . . Repair Stations . | . . . . . . . . . . Recycling Units . | . . . . . . . . . . Scanalyzers . | . . . . . . . . . . Garrison Access . | . . . . . . . . . . Data Cores Recovered 1 | . . . . 1 . . . . . Used . | . . . . . . . . . . Hacking Detections 11 | . . 1 6 3 . . . . 1 Full Trace Events 1 | . . . 1 . . . . . . Feedback Events . | . . . . . . . . . . Feedback Blocked . | . . . . . . . . . . Robot Schematics Acquired 7 | . . . . . . . 7 . . Robots Built . | . . . . . . . . . . Authchips . | . . . . . . . . . . Time . | . . . . . . . . . . Total Robot Build Rating . | . . . . . . . . . . Part Schematics Acquired 9 | . . . . . . . 9 . . Parts Built . | . . . . . . . . . . Authchips . | . . . . . . . . . . Time . | . . . . . . . . . . Total Part Build Rating . | . . . . . . . . . . Parts Repaired . | . . . . . . . . . . Time . | . . . . . . . . . . Parts Recycled . | . . . . . . . . . . Recycled Matter . | . . . . . . . . . . Retrieved Matter . | . . . . . . . . . . Retrieved Components . | . . . . . . . . . . Parts Scanalyzed . | . . . . . . . . . . Part Schematics Acquired . | . . . . . . . . . . Parts Damaged . | . . . . . . . . . . Bothacking | -11 -10 -9 -8 -7 -7 -7 -7 -6 -6 ------------ Run | Jun Mat Mat Mat Fac Low Low Dat Pro Fac Used RIF Installer . | . . . . . . . . . . Robots Hacked . | . . . . . . . . . . Non-combat . | . . . . . . . . . . Combat . | . . . . . . . . . . Robot Hacks Applied . | . . . . . . . . . . Relay Couplers Released 4 | . . . . 4 . . . . . Programmers 4 | . . . . 4 . . . . . Fabnet Peak Effective % . | . . . . . . . . . . Robots Rewired . | . . . . . . . . . . Allies Hacked . | . . . . . . . . . . Hacks Repelled . | . . . . . . . . . . Allies | -11 -10 -9 -8 -7 -7 -7 -7 -6 -6 -------- Run | Jun Mat Mat Mat Fac Low Low Dat Pro Fac Total Allies 1 | . . . . . . . . 1 . Largest Group 1 | . . . . . . . . 1 . Highest-Rated Group 96 | . . . . . . . . 96 . Highest-Rated Ally 96 | . . . . . . . . 96 . Total Orders . | . . . . . . . . . . Ally Attacks 4 | . . . . . . . . 4 . Total Damage 332 | . . . . . . . . 332 . Kills 1 | . . . . . . . . 1 . Allies Corrupted . | . . . . . . . . . . Allies Melted . | . . . . . . . . . . Intel | -11 -10 -9 -8 -7 -7 -7 -7 -6 -6 ------- Run | Jun Mat Mat Mat Fac Low Low Dat Pro Fac Robot Analysis Total . | . . . . . . . . . . Derelict Logs Recovered 6 | . . . . . 3 2 . 1 . Drone Launches . | . . . . . . . . . . Drone Recoveries . | . . . . . . . . . . Exploration | -11 -10 -9 -8 -7 -7 -7 -7 -6 -6 ------------- Run | Jun Mat Mat Mat Fac Low Low Dat Pro Fac Turns Passed 6702 | 215 584 958 1640 1377 164 201 26 225 1312 Spaces Moved 5361 | 121 318 450 830 1511 382 543 97 498 611 Core 361 | 31 . . 1 . . . . 118 211 Treads 1980 | 90 318 450 742 . . . . . 380 Legs 11 | . . . 11 . . . . . . Wheels 20 | . . . . . . . . . 20 Hover 1368 | . . . 76 1292 . . . . . Flight 1621 | . . . . 219 382 543 97 380 . Fastest Speed 27 | 50 160 160 44 29 27 27 27 27 50 Average Speed 93 | 131 160 160 153 65 27 27 27 34 150 Slowest Speed 850 | 160 160 240 750 520 29 27 27 107 850 Overloaded Moves . | . . . . . . . . . . Propulsion Burnouts . | . . . . . . . . . . Robots Hopped 3 | . . . . 1 1 . . 1 . Cave-ins Triggered . | . . . . . . . . . . Exploration Rate (%) 48 | 5 51 40 60 34 58 77 75 71 16 Regions Visited 9 Branch Regions 4 Pre-discovered Areas 3 | . . . . . 1 . 1 1 . Known Exits Taken 3 | . . . . . 1 1 . 1 . Unknown Exits Taken 6 | 1 1 1 1 1 . . 1 . . Scrap Searched 5 | . . . . . 4 1 . . . Spaces Dug 16 | . . . . 12 . . . 2 2 Terrain Destroyed 248 | . . . 12 38 28 32 . 23 115 Melee 11 | . . . . 8 . . . 2 1 Projectile 14 | . . . . 4 . . . . 10 AOE 223 | . . . 12 26 28 32 . 21 104 Terrain Rammed . | . . . . . . . . . . Walls Destroyed . | . . . . . . . . . . Machines Disabled . | . . . . . . . . . . Actions | -11 -10 -9 -8 -7 -7 -7 -7 -6 -6 --------- Run | Jun Mat Mat Mat Fac Low Low Dat Pro Fac Total 6398 | 157 359 592 1024 1772 436 595 96 545 822 Wait 359 | 7 . 41 20 112 52 48 . 33 46 Move 5346 | 120 317 449 829 1508 379 542 96 495 611 Hop 3 | . . . . 1 1 . . 1 . Pick Up 110 | 13 13 22 20 14 1 1 . 1 25 Fast Attach 25 | . . 2 7 6 . . . 1 9 Attach 63 | 7 . 10 13 12 1 . . 3 17 Detach 7 | . . . . 2 . . . 4 1 Swap 36 | . 2 6 12 10 . . . 1 5 Drop 62 | . 8 12 26 8 . 2 . 2 4 Fire 292 | 10 19 49 97 30 2 2 . 2 81 Melee 79 | . . . . 55 . . . 2 22 Ram 1 | . . . . 1 . . . . . Kick . | . . . . . . . . . . Crush 2 | . . 1 . . . . . . 1 Escape Stasis 13 | . . . . 13 . . . . . Rewire . | . . . . . . . . . . Trap . | . . . . . . . . . . Miscellaneous . | . . . . . . . . . . Route ------- -11/Junkyard -10/Materials (discovered 2 exits: *Mat / [*Min]) -9/Materials (discovered 3 exits: *Mat / [*Min x2]) -8/Materials -7/Factory -7/Lower Caves -7/Lower Caves -7/Data Miner -6/Proximity Caves -6/Factory (discovered 2 exits: Fac / Low) History --------- Turn | Location | Event 4 | -11/Junkyard | Discovered new exit (range 15) 216 | -11/Junkyard | Entered Materials 309 | -10/Materials | Build established: Mutant 492 | -10/Materials | Discovered new exit (range 8) 727 | -10/Materials | Discovered new exit (range 16) 800 | -10/Materials | Entered another Materials area 800 | -9/Materials | Evolved 2 slots: Propulsion x1, Utility x1 861 | -9/Materials | Discovered new exit (range 13) 968 | -9/Materials | Lost 3 parts (1u2w) 1146 | -9/Materials | Discovered new exit (range 11) 1558 | -9/Materials | Discovered new exit (range 8) 1758 | -9/Materials | Entered another Materials area 1758 | -8/Materials | Evolved 2 slots: Propulsion x2 1967 | -8/Materials | Lost 3 parts (1p1n1w) 3245 | -8/Materials | Discovered new exit (range 3) 3398 | -8/Materials | Entered Factory 3398 | -7/Factory | Evolved 2 slots: Utility x2 3930 | -7/Factory | Lost 3 parts (2n1u) 4471 | -7/Factory | Lost 4 parts (1p2n1u) 4745 | -7/Factory | Discovered new exit (range 13) 4775 | -7/Factory | Entered Lower Caves 4864 | -7/Lower Caves | Learned location of Zion (-6) 4870 | -7/Lower Caves | Encountered a Warlord checkpoint 4878 | -7/Lower Caves | Identified exit to Lower Caves 4890 | -7/Lower Caves | Spotted B-75 Beast 4916 | -7/Lower Caves | Learned location of 1 exit from Factory 4935 | -7/Lower Caves | Build established: Sprinter 4939 | -7/Lower Caves | Entered another Lower Caves area 4972 | -7/Lower Caves | Learned Armory security intel 4979 | -7/Lower Caves | Learned location of 1 exit from Factory 5043 | -7/Lower Caves | Identified exit to Data Miner 5140 | -7/Lower Caves | Entered Data Miner 5140 | -7/Data Miner | Discovered new exit (range 6) 5146 | -7/Data Miner | Met Data Miner 5154 | -7/Data Miner | Learned location of Section 7 (-3) 5154 | -7/Data Miner | Acquired the access code to Warlord's prototype stash 5159 | -7/Data Miner | Received God Mode back door access code from Data Miner 5166 | -7/Data Miner | Entered Proximity Caves 5213 | -6/Proximity Caves | Spotted B-75 Beast 5222 | -6/Proximity Caves | Escorted by Enhanced Grunt 5265 | -6/Proximity Caves | Spotter reported a threat 5362 | -6/Proximity Caves | Lost 7 parts (1p4n2u) 5388 | -6/Proximity Caves | Discovered new exit (range 6) 5390 | -6/Proximity Caves | Identified exit to Factory 5391 | -6/Proximity Caves | Entered Factory 5391 | -6/Factory | Evolved 2 slots: Power x1, Propulsion x1 5392 | -6/Factory | Identified exit to Factory 5392 | -6/Factory | Identified exit to Lower Caves 5586 | -6/Factory | Build established: Mutant 5776 | -6/Factory | Lost 3 parts (1n2u) 5932 | -6/Factory | Build established: Scavenger-Mutant 6333 | -6/Factory | Found Launcher Loader 6479 | -6/Factory | Garrison activated, responded to threat 6566 | -6/Factory | Lost 3 parts (1n2u) 6651 | -6/Factory | Core integrity fell below 50% 6670 | -6/Factory | Core integrity fell below 20% 6703 | -6/Factory | Destroyed by H-66 Slayer with Heavy Assault Rifle Last Messages --------------- 06678_ K-01 Serf destroyed. 06678_ Penetrated by Slug. 06678_ Shock Maul destroyed. 06678_ U-05 Engineer lays Concrete. 06680_ DSF Access disabled. 06680_ ALERT: Construction progress impeded, dispatching reinforcements to local area. 06681_ Penetrated by Slug. 06681_ Hvy. Missile Launcher destroyed. 06684_ Slug penetrates Wall. 06687_ Penetrated by Slug. 06696_ Hrd. Light Armor Plating destroyed. 06697_ Adv. Terrain Scan Processor destroyed. 06698_ The unstable cave ceiling collapses. 06698_ H-66 Slayer destroyed. 06699_ The unstable cave ceiling collapses. 06700_ Slug penetrates Earth. 06701_ H-66 Slayer destroyed. 06701_ K-01 Serf collects debris. 06703_ Penetrated by Slug. Map ----- +----------------------------------------------------+ | "" ! ##########+#############+###########????? | | "" ! ###### | | """ #""## | | """ """ # !! | | """ """ # [ | | """ # | | "" "" ##########+##### #* | | "" "" """ ##????? !## # | | """ """ """ #???#?#"" ## # | | """ """ """ #?????#"" ## # !!! | | """ """ #??##?#"T ## + !! | | """ #?????#"" ## # !! | | ?? """ #?#???#" ## # | | ?###? """ ##????# ###""""## # | | ??## #?????# * # " # | | ?#?# ??" #?????# # ## # | | ?#?? ?? ??" ####### ! #! #### # [ | | ?????? ? ?"" + % #% + # | | ???????? ?? %# % "" %#! # ###### | | ??????????? + """"%# # [ # | | ???????????############ """% # ]?# [[ #"" | | ??????????????????????# " " # ?# ^ #"T | | ??????????????????????# = # ??# #"" | | ?????????????????????## [= ###??# [ + | | ????????????########## ###????# ^ # """ | | ????????????# @ #??????# """ # """ | | ????????????# #????# ^ """ # """ | | ????????????# #???# """ # | | ????????????# ^ = #### "##### | | ????????????# [ = k ^""" # | | ???????????? h """ + | | ???????????? """ # | | ???????????? # """" | | ????????????# % # """" | | ????????????# # #####+######### """" | | ????????????# ###### ## """" | | ????????????# ????# ## | | ????????????# ????# " " " ######? | | ????????????########## ????# " " " #?????? | | ?????????????????????## # ????# " " " #?????? | | ???????????????????????## ????# " " " #?????? | | ????????????????????????????????# " " " #?????? | | ????????????????????????????????# " " " #?????? | | ????????????????????????????????# " " " #?????? | | ????????????????????????????????# " " " #?????? | | ????????????????????????????????# " " " #?????? | | ????????????????????????????????# "" #?????? | | ????????????????????????????????# "F"" #?????? | | ????????????????????????????????# """" #?????? | | ????????????????????????????????#! #?????? | +----------------------------------------------------+ Best States ------------- Heat Dissipation 53 Energy Generation 29 Energy Capacity 480 Matter Stores 300 Matter Capacity 300 Sight Range 16 Robot Scan Range 15 Terrain Scan Range 20 Terrain Scan Density 410 Additional Mass Support 9 Armor Coverage 300 Resistance: KI 20 Utility Shielding 66 Evasion (%) 64 Targeting Accuracy 8 Core Analysis 6 Recoil Reduction 5 Item Schematics ----------------- Combat Drone Bay | -7/Data Miner | Free Lgt. Regenerative Plating | -7/Data Miner | Free Biomechanical Wings | -7/Data Miner | Free Exp. Targeting Computer | -7/Data Miner | Free Prc. Rocket Launcher | -7/Data Miner | Free Linear Gravjet | -7/Data Miner | Free Imp. Transmission Jammer | -7/Data Miner | Free Wave Gun | -7/Data Miner | Free Imp. Corruption Screen | -7/Data Miner | Free Robot Schematics ------------------ W-25 Informer | -7/Data Miner | Free M-14 Sweeper | -7/Data Miner | Free H-66 Slayer | -7/Data Miner | Free H-55 Commando | -7/Data Miner | Free S-27 Virus | -7/Data Miner | Free B-60 Warrior | -7/Data Miner | Free G-50 Soldier | -7/Data Miner | Free Fabricated ------------ Nothing Alien Tech Used ----------------- None Achievements -------------- The Oracle Challenges ------------ None Game ------ Seed RecyclingInsulatedScythe Manual? 0 Play Time 01:42:04 Cumulative 59.8 hours Start 2023.03.14 @ 02:24:05 End 2023.03.14 @ 04:44:04 Sessions 1 Manual Loads 0 Difficulty Rogue Special Mode None Game No. 15 Rogue 15 Adventurer 0 Explorer 0 Win Type - Total 3 Types 3/0/0/0/0/0/0/0/0 Lore% 15 Gallery% 38 Achievement% 36 Wizard Run 0 Options --------- ASCII 0 Keyboard 0 Movement Mouse Keybinds 0 Fullscreen 2 Font 16/SmallcapsGlow Map View 75x55 Tactical HUD 1 Map Filters NONE Filters NONE Steam 1 RUN: c0dff830-b50b-46d4-96f1-61292a13a85c